Cogmind - Beta 16 @@@ ROGUE MODE // 2025.11.16 @ 15:51:57 // Winter2019/RPGLIKE Player: Jaegerpls Result: Smashed by cave-in Performance ------------- Evolutions (0) 0 Regions Visited (0) 0 Robots Destroyed (8) 40 Value Destroyed (55) 55 Prototype IDs (0) 0 Alien Tech Used (0) 0 Bonus (0) 0 TOTAL SCORE: 95 Bonus ------- None Cogmind --------- Core Integrity 0/600 Matter 295/300 Energy 54/100 System Corruption 2% Temperature Cool (0) Movement Rolling (80) Location -11/Scrapyard Parts ------- > --- POWER (1) -------- (None) > --- PROPULSION (2) --- Wheel Wheel > --- UTILITY (3) ------ Improved Terrain Scanner Seismic Detector > --- WEAPON (2) ------- Medium Laser Mining Laser > --- INVENTORY (1) ---- Medium Laser Peak State ------------ > --- POWER ------------ Light Ion Engine > --- PROPULSION ------- Wheel Wheel > --- UTILITY ---------- Improved Terrain Scanner Seismic Detector Seismic Detector > --- WEAPON ----------- Medium Laser Medium Laser > --- INVENTORY -------- Mining Laser [Rating: 10] Favorites ----------- Power Light Ion Engine Engine Light Ion Engine Propulsion Wheel Wheel Wheel Utility Seismic Detector Device Seismic Detector Weapon Medium Laser Energy Gun Medium Laser Special Weapon Mining Laser Build | -11 ------- Run | Yrd Slots Evolved 4 | 4 Power . | . Propulsion 1 | 1 Utility 2 | 2 Weapon 1 | 1 Parts Attached 9 | 9 Power 1 | 1 Engine 1 | 1 Core . | . Reactor . | . Propulsion 2 | 2 Treads . | . Leg . | . Wheel 2 | 2 Hover . | . Flight . | . Utility 3 | 3 Device 3 | 3 Storage . | . Processor . | . Hackware . | . Protection . | . Artifact . | . Weapon 3 | 3 Energy Gun 2 | 2 Energy Cannon . | . Ballistic Gun . | . Ballistic Cannon . | . Launcher . | . Special Weapon 1 | 1 Impact Weapon . | . Slashing Weapon . | . Piercing Weapon . | . Special Melee Weapon . | . Unidentified Prototypes . | . Parts Lost 1 | 1 Power 1 | 1 Propulsion . | . Utility . | . Weapon . | . Highest Loss Streak 1 | 1 To Critical Strikes . | . Average Backups . | . Power . | . Propulsion . | . Utility . | . Weapon . | . Tool/Special . | . Unused Backups . | . Power . | . Propulsion . | . Utility . | . Weapon . | . Tool/Special . | . Average Slot Usage (%) . | . Peak Build Rating 10 | 10 Average Rating 8 | 8 On Entrance . | . Avg Prop Armor Cover (%) . | . Naked Turns . | . Heaviest Build 9 | 9 Greatest Support 20 | 20 Greatest Overweight (x) 1 | 1 Average Overweight (x) . | . Largest Inventory Capacity 1 | 1 Average Capacity 1 | 1 Most Carried 1 | 1 Average Carried . | . Final Capacity 1 | 1 Final Carried 1 | 1 Class Distribution -------------------- None Dominant Class ---------------- None Resources | -11 ----------- Run | Yrd Matter Collected 280 | 280 Remotely . | . Salvage Created 191 | 191 Parts 21 | 21 Haulers Intercepted . | . Recyclers Shooed . | . Parts Field Recycled . | . Retrieved Matter . | . Parts Self-Destructed . | . Prevented . | . Parts Restored . | . Kills | -11 ------- Run | Yrd Combat Hostiles Destroyed . | . Classes Destroyed 2 | 2 Tunneler 7 | 7 Recycler 1 | 1 Best Kill Streak 3 | 3 Combat Bots Only . | . Max Kills in Single Turn 1 | 1 Gunslinging . | . Exploded . | . Melee . | . Uniques/NPCs Destroyed . | . Combat | -11 -------- Run | Yrd Hostile Shots Fired . | . Missed . | . Hits . | . Damage Taken 798 | 798 Core 657 | 657 Absorbed by Shields . | . Redirected to Core 542 | 542 Core Remaining (%) . | . Volleys Fired 47 | 47 Largest 2 | 2 Hottest 100 | 100 Shots Fired 75 | 75 Gun 56 | 56 Cannon . | . Launcher . | . Special 19 | 19 Kinetic . | . Thermal 75 | 75 Explosive . | . Electromagnetic . | . Robot Hit Streak 6 | 6 Robot Miss Streak 3 | 3 Penetration Max . | . Secondary Targets . | . Shots Hit Robots 33 | 33 Core Hits 9 | 9 Critical Kills . | . Critical Parts Destroyed . | . Critical Strikes 1 | 1 Burn 1 | 1 Melee Attacks . | . Impact . | . Slashing . | . Piercing . | . Sneak Attacks . | . Combat Hostiles . | . Follow-up Attacks . | . Damage Inflicted 431 | 431 Guns 431 | 431 Cannons . | . Explosions . | . Melee . | . Ramming . | . Kinetic . | . Thermal 431 | 431 Explosive . | . Electromagnetic . | . Impact . | . Slashing . | . Piercing . | . Highest Corruption 2 | 2 Average Corruption 2 | 2 Corruption Purged . | . Corruption Blocked . | . Overload Shots . | . Overflow Damage . | . Projectiles . | . Explosions . | . Melee . | . Knockbacks . | . Impact . | . Kinetic . | . Secondary . | . Self-Inflicted Damage . | . Shots . | . Rammed . | . Targets Rammed . | . Kicked . | . Crushed . | . Highest Temperature 126 | 126 Average Temperature 33 | 33 Received Heat Transfer . | . Siege Activations . | . Martial Activations . | . Shielding Activations . | . Robots Disrupted . | . Combat Hostiles . | . Robots Corrupted . | . Combat Hostiles . | . Parts Fried . | . Impact Corruptions . | . Robots Melted . | . Combat Hostiles . | . Parts Melted 4 | 4 Heat Transferred 1332 | 1332 Parts Sabotaged . | . Parts Stolen . | . Parts Stripped . | . Power Chain Reactions . | . Alert | -11 ------- Run | Yrd Maximum Alert Level . | . Low Security (%) 100 | 100 Level 1 . | . Level 2 . | . Level 3 . | . Level 4 . | . Level 5 . | . High Security . | . Max Security . | . Peak Influence 9 | 9 Initial . | . Average . | . Influence Increases 40 | 40 Destroy 0b10 Robot/NC 40 | 40 Influence Decreases 40 | 40 Time Decay 40 | 40 Squads Dispatched . | . Investigation . | . Extermination . | . Reinforcement . | . Assault . | . Garrison . | . Intercept . | . Searches Triggered . | . Construction Impeded . | . Haulers Reinforced . | . Active Scanning Responses . | . Cargo Convoy Interrupts . | . Stealth | -11 --------- Run | Yrd Distress Signals . | . Communications Jammed . | . Distress Signals . | . Times Spotted . | . Peak Tracking Total . | . Tactical Retreats . | . Traps | -11 ------- Run | Yrd Traps Triggered . | . Indirectly . | . Trap Hack Attempts . | . Triggered . | . Disarmed . | . Reprogrammed . | . Reused . | . Traps Extracted . | . Installed . | . Triggered . | . Machines | -11 ---------- Run | Yrd Machines Disabled . | . Max in Single Turn . | . Machines Repaired . | . Machines Dismantled . | . Machines Sabotaged . | . Overloaded Fab Kills . | . Hacking | -11 --------- Run | Yrd Machines Accessed . | . Terminals . | . Fabricators . | . Repair Stations . | . Recycling Units . | . Scanalyzers . | . Garrison Access . | . Total Hacks . | . Successful . | . Failed . | . Catastrophic . | . Database Lockouts . | . Manual . | . Terminals . | . Fabricators . | . Repair Stations . | . Recycling Units . | . Scanalyzers . | . Garrison Access . | . Terminal Hacks . | . Fabricator Hacks . | . Repair Station Hacks . | . Recycling Unit Hacks . | . Scanalyzer . | . Garrison Access Hacks . | . Unauthorized Hacks . | . Terminals . | . Fabricators . | . Repair Stations . | . Recycling Units . | . Scanalyzers . | . Garrison Access . | . Data Cores Recovered . | . Used . | . Hacking Detections . | . Full Trace Events . | . Feedback Events . | . Feedback Blocked . | . Robot Schematics Acquired . | . Robots Built . | . Authchips . | . Time . | . Total Robot Build Rating . | . Part Schematics Acquired . | . Parts Built . | . Authchips . | . Time . | . Total Part Build Rating . | . Part Studies Acquired . | . Parts Repaired . | . Time . | . Parts Recycled . | . Recycled Matter . | . Retrieved Matter . | . Retrieved Components . | . Parts Scanalyzed . | . Part Schematics Acquired . | . Parts Damaged . | . Bothacking | -11 ------------ Run | Yrd Used RIF Installer . | . Robots Hacked . | . Non-combat . | . Combat . | . Robot Hacks Applied . | . Relay Couplers Released . | . Fabnet Peak Effective % . | . Robots Rewired . | . Allies Hacked . | . Hacks Repelled . | . Allies | -11 -------- Run | Yrd Total Allies . | . Largest Group . | . Highest-Rated Group . | . Highest-Rated Ally . | . Total Orders . | . Ally Attacks . | . Total Damage . | . Kills . | . Allies Corrupted . | . Allies Melted . | . Intel | -11 ------- Run | Yrd Active Infowar (turns) 3407 | 3407 Terrain 3372 | 3372 Seismic 3407 | 3407 Robot Analysis Total . | . Derelict Logs Recovered . | . Drone Launches . | . Drone Recoveries . | . Exploration | -11 ------------- Run | Yrd Turns Passed 3463 | 3463 Spaces Moved 1473 | 1473 Core 5 | 5 Treads . | . Legs . | . Wheels 1468 | 1468 Hover . | . Flight . | . Fastest Speed 50 | 50 Average Speed 79 | 79 Slowest Speed 100 | 100 Overloaded Moves . | . Propulsion Burnouts . | . Robots Hopped . | . Potential Cave-ins 13 | 13 Cave-ins Triggered 4 | 4 Exploration Rate (%) 69 | 69 Regions Visited . Branch Regions . Pre-discovered Areas . | . Known Exits Taken . | . Unknown Exits Taken . | . Scrap Searched . | . Spaces Dug 19 | 19 Terrain Destroyed 19 | 19 Melee . | . Projectile 19 | 19 AOE . | . Terrain Rammed . | . Walls Destroyed . | . Machines Disabled . | . Actions | -11 --------- Run | Yrd Total 3644 | 3644 Wait 2113 | 2113 Move 1472 | 1472 Hop . | . Pick Up 1 | 1 Fast Attach 8 | 8 Attach . | . Detach . | . Swap 1 | 1 Drop 1 | 1 Fire 47 | 47 Melee . | . Ram . | . Kick . | . Crush . | . Escape Stasis 1 | 1 Rewire . | . Trap . | . Miscellaneous . | . Route ------- -11/Scrapyard (discovered 1 exit: [*Mat]) History --------- Turn | Location | Event 1 | -11/Scrapyard | Upgraded with Propulsion slot (x1) 1 | -11/Scrapyard | Upgraded with Utility slot (x2) 1 | -11/Scrapyard | Upgraded with Weapon slot (x1) 7 | -11/Scrapyard | Discovered new exit (range 16) 3140 | -11/Scrapyard | Crushed by falling debris 3172 | -11/Scrapyard | Crushed by falling debris 3172 | -11/Scrapyard | Core integrity fell below 50% 3463 | -11/Scrapyard | Crushed by falling debris 3464 | -11/Scrapyard | Core integrity fell below 20% 3465 | -11/Scrapyard | Crushed by falling debris 3465 | -11/Scrapyard | Smashed by cave-in Last Messages --------------- 03044_ Lgt. Ion Engine melted. 03044_ Imp. Terrain Scanner melted. 03044_ T-07 Excavator destroyed. 03072_ K-01 Serf collects debris. 03076_ Acquired Mining Laser. 03076_ K-01 Serf collects debris. 03078_ Acquired Seismic Detector. 03080_ Dropped Seismic Detector. 03080_ K-01 Serf collects debris. 03102_ Acquired 10 matter. 03140_ The unstable cave ceiling collapses. 03140_ Crushed by falling debris. 03172_ The unstable cave ceiling collapses. 03172_ Crushed by falling debris. 03182_ The unstable cave ceiling collapses. 03463_ Crushed by falling debris. 03463_ Lgt. Ion Engine destroyed. 03463_ System corrupted by crushing effect (+2). 03465_ The unstable cave ceiling collapses. 03465_ Crushed by falling debris. Map ----- +----------------------------------------------------+ | | | | | | | | | | | | | | | | | | | | | | | | | | | | | | | | | | | ################################################## | | ################################################## | | #?##?#################################### | | ######################################### | | ######################################### | | ######################################### | | ############## "## # ################### | | ##?########## " ##### ##### ##### | | ############# " ####@#### # ##### | | ############# " ####### # | | ############## " ## ###### # ######### #### | | ############## " ############ ### # | | ############## ############## ### # | | ################ ############### ### # # | | ###################################### # | | ###################################### # # | | ###################################### # # | | ########################################## # # | | ?#################################### # | | ??################################### % #### | | ??################################### ### ###### | | ################################# # # ### | | ################################# # ## | | ################################# # ## | | ################################# # ## | | ################################# # ## | | ################################# # ## | | ############################### ######### | | ################################# #### ### | | ################################# #### | | ########################## # #### | | ########################## # #### ### | | ########################## ##### ## | +----------------------------------------------------+ Best States ------------- Heat Dissipation 31 Energy Generation 10 Energy Capacity 125 Matter Stores 300 Matter Capacity 300 Sight Range 16 Robot Scan Range 4 Terrain Scan Range 16 Terrain Scan Density 310 Evasion (%) 44 Item Schematics ----------------- None Robot Schematics ------------------ None Fabricated ------------ Nothing Repaired ---------- Nothing Studied --------- None Alien Tech Used ----------------- None Achievements -------------- None Challenges ------------ None RPGLIKE | -11 --------- Run | Yrd Levels Raised . | . XP Earned 3000 | 3000 XP Spent 2995 | 2995 Upgrades 11 | 11 Propulsion Slot 1 | 1 Utility Slot 2 | 2 Weapon Slot 1 | 1 Heat Dissipation 1 | 1 Inventory Capacity 1 | 1 Sensor Range 2 | 2 Terrain Scan Density 3 | 3 Protomatter Created . | . Protomatter Decayed . | . Game ------ Seed TargetDeuteriumPendant Manual? 0 Play Time 00:15:54 Cumulative 55.8 hours Start 2025.11.16 @ 15:43:58 End 2025.11.16 @ 15:51:57 Sessions 0 Manual Loads 0 Difficulty Rogue Special Mode Winter2019/RPGLIKE Game No. 56 Rogue 56 Adventurer 0 Explorer 0 Win Type - Total 0 Types 0/0/0/0/0/0/0/0/0/0 Lore% 51 Gallery% 34 Achievement% 32 Wizard Run 0 Options --------- Layout 0 ASCII 0 Keyboard 0 Movement Numpad Keybinds 0 Fullscreen 2 Font 24/Smallcaps Map View 76x50 Zoom Use 0% Tactical HUD 1 Map Filters NONE Filters NONE Steam 1 RUN: 102b5cd9-463d-4496-ab47-a46143e0f23e